fUST/lending_fUST_20240927
["ID","MTS","AMOUNT","RATE_DAILY","PERIOD"]
[339265826,1727422158073,-523.14816909,0.00015654,2]
[339265827,1727422158098,-500.0,0.00015931,2]
[339265828,1727422158124,-500.0,0.00015931,2]
[339265829,1727422158150,-47384.460228,0.00015949,2]
[339265830,1727422158173,-46827.2859405,0.00015949,2]
[339265831,1727422158195,-169.388676,0.0001595,2]
[339265832,1727422158217,-420.0,0.00015993,2]
[339265833,1727422158240,-3000.0,0.00016,2]
[339265834,1727422158262,-3000.0,0.0001601,2]
[339265835,1727422158284,-3000.0,0.0001602,2]
[339265836,1727422158305,-1193.847371,0.00016027,2]
[339265837,1727422158328,-3000.0,0.0001603,2]
[339265838,1727422158350,-3000.0,0.0001604,2]
[339265839,1727422158375,-3855.403884,0.0001605,2]
[339265840,1727422158398,-420.0,0.00016068,2]
[339265841,1727422158419,-501.4798456,0.00016073,2]
[339265842,1727422158440,-500.97611232,0.00016073,2]
[339265843,1727422158462,-207.22832911,0.00016073,2]
[339265844,1727422158484,-377.26870101,0.00016073,2]
[339265845,1727422158505,-500.0,0.00016073,2]
[339265846,1727422158526,-501.76654759,0.00016073,2]
[339265847,1727422158549,-500.0,0.00016073,2]
[339265848,1727422158571,-500.0,0.00016073,2]
[339265849,1727422158593,-500.0,0.00016073,2]
[339265850,1727422158616,-501.57713305,0.00016073,2]
[339265851,1727422158638,-500.0,0.00016073,2]
[339265852,1727422158661,-500.0,0.00016073,2]
[339265853,1727422158684,-507.23894517,0.00016073,2]
[339265854,1727422158706,-169.388676,0.00016391,2]
[339265855,1727422158734,-1000.83854048,0.00016621,2]
[339265856,1727422158756,-625.2598646,0.00016621,2]
[339265857,1727422158777,-1000.0,0.00016621,2]
[339265858,1727422158799,-1000.0,0.00016621,2]
[339265859,1727422158822,-523.14816909,0.00016789,2]
[339265860,1727422158844,-169.388676,0.00016832,2]
[339265861,1727422158865,-501.07211232,0.00017331,2]
[339265862,1727422158887,-1500.0,0.00017331,2]
[339265863,1727422172121,-587.0,0.00017511,2]
[339265864,1727422172144,-587.0,0.00017675,2]
[339265865,1727422172167,-523.14816909,0.00017923,2]
[339265866,1727422172189,-2066.17113647,0.00018,2]
[339265867,1727422178045,500.0,0.00014608,2]
[339265868,1727422178142,390.14470563,0.00014608,2]
[339265873,1727422211187,1836.34392367,0.00014519,2]
[339265874,1727422216955,382.67538042,0.00014608,2]
[339265920,1727422232215,-239.09119926,0.00018002,2]
[339266070,1727422238416,-45.49686296,0.00018002,2]
[339266073,1727422238428,-410.21851972,0.00018002,2]
[339266075,1727422238437,-177.44450092,0.00018002,2]
[339266077,1727422238447,-212.33697936,0.00018002,2]
[339266079,1727422238459,-287.66302064,0.00018002,2]
[339266081,1727422238468,-353.44650088,0.00018002,2]
[339266083,1727422238478,-500.0,0.00018002,2]
[339266086,1727422238497,-500.0,0.00018002,2]
[339266088,1727422238508,-229.64955293,0.00018002,2]
[339266090,1727422238518,-237.1135289,0.00018002,2]
[339266092,1727422238527,-500.0,0.00018002,2]
[339266094,1727422238537,-500.0,0.00018002,2]
[339266095,1727422238547,-500.0,0.00018002,2]
[339266098,1727422238557,-500.0,0.00018002,2]
[339266100,1727422238566,-650.44156916,0.00018002,2]
[339266102,1727422238575,-500.0,0.00018002,2]
[339266105,1727422238585,-500.0,0.00018002,2]
[339266107,1727422238594,-500.0,0.00018002,2]
[339266109,1727422238604,-500.0,0.00018002,2]
[339266111,1727422238614,-500.0,0.00018002,2]
[339266113,1727422238623,-500.0,0.00018002,2]
[339266115,1727422238632,-500.0,0.00018002,2]
[339266117,1727422238642,-500.0,0.00018002,2]
[339266119,1727422238651,-489.40309897,0.00018002,2]
[339266121,1727422238662,-500.0,0.00018002,2]
[339266123,1727422238671,-500.0,0.00018002,2]
[339266125,1727422238681,-500.0,0.00018002,2]
[339266127,1727422238691,-500.0,0.00018002,2]
[339266129,1727422238701,-500.0,0.00018002,2]
[339266131,1727422238710,-500.0,0.00018002,2]
[339266133,1727422238720,-500.0,0.00018002,2]
[339266135,1727422238729,-60.90880074,0.00018002,2]
[339266137,1727422238738,-300.0,0.00018002,2]
[339266139,1727422238748,-47384.460228,0.00018003,2]
[339266141,1727422238757,-46827.2859405,0.00018003,2]
[339266143,1727422238767,-2000.0,0.00018032,2]
[339266145,1727422238777,-150.112233,0.000181,2]
[339266147,1727422238787,-277.65425032,0.00018159,2]
[339266149,1727422238797,-500.0,0.00018159,2]
[339266151,1727422238807,-500.0,0.00018355,2]
[339266153,1727422238816,-150.112233,0.000184,2]
[339266155,1727422238826,-150.112233,0.000187,2]
[339266157,1727422238835,-150.112233,0.00019,2]
[339266159,1727422238845,-523.14816909,0.00019058,2]
[339266161,1727422238854,-3274.08874599,0.00019068,2]
[339266163,1727422238864,-3168.44795286,0.00019068,2]
[339266165,1727422238874,-3848.0,0.00019078,2]
[339266167,1727422238884,-142153.380684,0.00019168,3]
[339266169,1727422238894,-140481.857822,0.00019168,3]
[339266171,1727422238903,-404.07975281,0.00019173,2]
[339266173,1727422238912,-169.37138884,0.00019178,2]
[339266175,1727422238921,-182.36,0.00019178,2]
[339266177,1727422238931,-500.0,0.00019178,2]
[339266179,1727422238940,-500.0,0.00019178,2]
[339266181,1727422238950,-533.29018558,0.00019178,2]
[339266183,1727422238959,-509.06102621,0.00019178,2]
[339266185,1727422238968,-500.0,0.00019178,2]
[339266187,1727422238977,-500.0,0.00019178,2]
[339266189,1727422238987,-509.92699727,0.00019178,2]
[339266191,1727422238997,-184.26401138,0.00019178,2]
[339266193,1727422239007,-199.72,0.00019178,2]
[339266195,1727422239017,-368.64450648,0.00019178,2]
[339266197,1727422239026,-500.0,0.00019178,2]
[339266200,1727422239038,-500.0,0.00019178,2]
[339266202,1727422239048,-500.0,0.00019178,2]
[339266204,1727422239058,-2138.35,0.00019178,2]
[339266206,1727422239068,-475.61037516,0.00019178,2]
[339266208,1727422239077,-200.0,0.00019178,2]
[339266210,1727422239087,-500.0,0.00019178,2]
[339266211,1727422239097,-500.0,0.00019178,2]
[339266214,1727422239110,-380.85087207,0.00019178,2]
[339266216,1727422239120,-500.0,0.00019178,2]
[339266218,1727422239130,-151.0,0.00019178,2]
[339266220,1727422239142,-500.0,0.00019178,2]
[339266222,1727422239156,-552.67060331,0.00019178,2]
[339266224,1727422239166,-500.0,0.00019178,2]
[339266226,1727422239176,-500.0,0.00019178,2]
[339266228,1727422239185,-500.0,0.00019178,2]
[339266230,1727422239195,-151.0,0.00019178,2]
[339266232,1727422239205,-500.0,0.00019178,2]
[339266234,1727422239214,-254.4741,0.00019178,2]
[339266237,1727422239224,-210.011963,0.00019178,2]
[339266239,1727422239234,-151.0,0.00019178,2]
[339266240,1727422239244,-500.0,0.00019178,2]
[339266243,1727422239254,-500.0,0.00019178,2]
[339266245,1727422239264,-1508.71,0.00019178,2]
[339266247,1727422239274,-500.0,0.00019178,2]
[339266249,1727422239284,-515.77743723,0.00019178,2]
[339266251,1727422239294,-504.39762484,0.00019178,2]
[339266253,1727422239304,-500.0,0.00019178,2]
[339266255,1727422239314,-500.0,0.00019178,2]
[339266256,1727422239324,-503.82682857,0.00019178,2]
[339266257,1727422239336,-508.20465973,0.00019178,2]
[339266258,1727422239348,-500.0,0.00019178,2]
[339266259,1727422239359,-500.0,0.00019178,2]
[339266260,1727422239370,-500.0,0.00019178,2]
[339266261,1727422239380,-484.81701463,0.00019178,2]
[339266262,1727422239390,-506.86488071,0.00019178,2]
[339266263,1727422239400,-500.0,0.00019178,2]
[339266264,1727422239410,-352.01920471,0.00019178,2]
[339266265,1727422239419,-525.11117407,0.00019178,2]
[339266266,1727422239429,-500.0,0.00019178,2]
[339266267,1727422239441,-500.0,0.00019178,2]
[339266268,1727422239451,-508.70404606,0.00019178,2]
[339266269,1727422239461,-151.0,0.00019178,2]
[339266270,1727422239471,-500.0,0.00019178,2]
[339266271,1727422239481,-151.0,0.00019178,2]
[339266272,1727422239491,-151.0,0.00019178,2]
[339266274,1727422239501,-151.0,0.00019178,2]
[339266276,1727422239510,-640.18445733,0.00019178,2]
[339266278,1727422239521,-151.0,0.00019178,2]
[339266280,1727422239531,-505.33591757,0.00019178,2]
[339266282,1727422239543,-509.34441419,0.00019178,2]
[339266284,1727422239557,-500.0,0.00019178,2]
[339266286,1727422239567,-505.39575549,0.00019178,2]
[339266288,1727422239577,-500.0,0.00019178,2]
[339266290,1727422239587,-500.0,0.00019178,2]
[339266292,1727422239597,-500.0,0.00019178,2]
[339266294,1727422239607,-171.525076,0.00019178,2]
[339266296,1727422239618,-500.0,0.00019178,2]
[339266298,1727422239628,-505.80502108,0.00019178,2]
[339266300,1727422239638,-500.0,0.00019178,2]
[339266302,1727422239648,-500.0,0.00019178,2]
[339266304,1727422239657,-500.0,0.00019178,2]
[339266306,1727422239666,-151.0,0.00019178,2]
[339266308,1727422239676,-500.0,0.00019178,2]
[339266310,1727422239686,-505.58776362,0.00019178,2]
[339266312,1727422239696,-520.48870808,0.00019178,2]
[339266314,1727422239706,-500.0,0.00019178,2]
[339266316,1727422239718,-500.0,0.00019178,2]
[339266319,1727422239728,-444.85133149,0.00019178,2]
[339266322,1727422239737,-500.0,0.00019178,2]
[339266325,1727422239748,-500.0,0.00019178,2]
[339266328,1727422239758,-640.84628451,0.00019178,2]
[339266331,1727422239768,-500.0,0.00019178,2]
[339266334,1727422239778,-508.17203683,0.00019178,2]
[339266337,1727422239788,-500.0,0.00019178,2]
[339266339,1727422239808,-151.0,0.00019178,2]
[339266341,1727422239818,-500.0,0.00019178,2]
[339266343,1727422239828,-500.0,0.00019178,2]
[339266345,1727422239838,-500.0,0.00019178,2]
[339266347,1727422239848,-374.04901473,0.00019178,2]
[339266349,1727422239858,-500.0,0.00019178,2]
[339266351,1727422239868,-531.08333799,0.00019178,2]
[339266353,1727422239879,-511.67284037,0.00019178,2]
[339266355,1727422239890,-500.0,0.00019178,2]
[339266357,1727422239900,-500.0,0.00019178,2]
[339266359,1727422239910,-500.0,0.00019178,2]
[339266361,1727422239921,-500.0,0.00019178,2]
[339266363,1727422239931,-160.254891,0.00019178,2]
[339266365,1727422239941,-406.8697545,0.00019178,2]
[339266367,1727422239950,-160.254891,0.00019178,2]
[339266369,1727422239960,-544.6,0.00019178,2]
[339266371,1727422239970,-554.31378775,0.00019178,2]
[339266373,1727422239979,-500.0,0.00019178,2]
[339266375,1727422239989,-504.25399332,0.00019178,2]
[339266377,1727422239999,-500.0,0.00019178,2]
[339266379,1727422240009,-500.0,0.00019178,2]
[339266381,1727422240019,-510.19479574,0.00019178,2]
[339266383,1727422240029,-1105.35,0.00019178,2]
[339266385,1727422240045,-500.0,0.00019178,2]
[339266387,1727422240054,-500.0,0.00019178,2]
[339266389,1727422240064,-508.86443732,0.00019178,2]
[339266391,1727422240074,-500.0,0.00019178,2]
[339266393,1727422240085,-500.0,0.00019178,2]
[339266395,1727422240095,-571.02813105,0.00019178,2]
[339266397,1727422240105,-500.0,0.00019178,2]
[339266399,1727422240116,-500.0,0.00019178,2]
[339266401,1727422240126,-193.19890639,0.00019178,2]
[339266403,1727422240135,-522.83889569,0.00019178,2]
[339266405,1727422240146,-500.0,0.00019178,2]
[339266407,1727422240160,-500.0,0.00019178,2]
[339266410,1727422240170,-300.25769185,0.00019178,2]
[339266412,1727422240180,-1320.5,0.00019178,2]
[339266414,1727422240190,-500.0,0.00019178,2]
[339266431,1727422240359,-500.0,0.00019178,2]
[339266433,1727422240368,-500.0,0.00019178,2]
[339266435,1727422240378,-500.0,0.00019178,2]
[339266437,1727422240388,-500.0,0.00019178,2]
[339266439,1727422240397,-503.00449786,0.00019178,2]
[339266441,1727422240407,-500.0,0.00019178,2]
[339266444,1727422240418,-500.0,0.00019178,2]
[339266446,1727422240428,-504.69552132,0.00019178,2]
[339266448,1727422240438,-500.0,0.00019178,2]
[339266450,1727422240448,-500.0,0.00019178,2]
[339266452,1727422240458,-591.25,0.00019178,2]
[339266454,1727422240468,-325.31,0.00019178,2]
[339266456,1727422240477,-504.73132709,0.00019178,2]
[339266458,1727422240487,-509.33291434,0.00019178,2]
[339266460,1727422240496,-500.0,0.00019178,2]
[339266462,1727422240506,-500.0,0.00019178,2]
[339266464,1727422240517,-506.37681654,0.00019178,2]
[339266466,1727422240527,-504.78427138,0.00019178,2]
[339266468,1727422240536,-506.60099789,0.00019178,2]
[339266470,1727422240549,-502.41177708,0.00019178,2]
[339266472,1727422240559,-502.49725659,0.00019178,2]
[339266474,1727422240568,-509.78686755,0.00019178,2]
[339266476,1727422240578,-500.0,0.00019178,2]
[339266478,1727422240587,-1182.11,0.00019178,2]
[339266480,1727422240599,-523.29652367,0.00019178,2]
[339266482,1727422240611,-500.0,0.00019178,2]
[339266484,1727422240621,-500.0,0.00019178,2]
[339266486,1727422240631,-500.0,0.00019178,2]
[339266489,1727422240642,-500.0,0.00019178,2]
[339266491,1727422240653,-500.0,0.00019178,2]
[339266493,1727422240662,-501.66673427,0.00019178,2]
[339266495,1727422240673,-500.0,0.00019178,2]
[339266497,1727422240682,-500.0,0.00019178,2]
[339266499,1727422240692,-500.0,0.00019178,2]
[339266501,1727422240702,-500.0,0.00019178,2]
[339266503,1727422240712,-262.28491804,0.00019178,2]
[339266505,1727422240721,-500.0,0.00019178,2]
[339266507,1727422240731,-503.80014309,0.00019178,2]
[339266509,1727422240742,-500.0,0.00019178,2]
[339266511,1727422240752,-500.0,0.00019178,2]
[339266514,1727422240763,-500.0,0.00019178,2]
[339266515,1727422240774,-507.86377123,0.00019178,2]
[339266517,1727422240784,-500.0,0.00019178,2]
[339266519,1727422240794,-500.0,0.00019178,2]
[339266521,1727422240804,-169.9404142,0.00019178,2]
[339266523,1727422240814,-464.26494316,0.00019178,2]
[339266526,1727422240824,-500.0,0.00019178,2]
[339266527,1727422240834,-500.0,0.00019178,2]
[339266529,1727422240843,-621.29322847,0.00019178,2]
[339266532,1727422240854,-506.94895857,0.00019178,2]
[339266534,1727422240864,-501.95821522,0.00019178,2]
[339266536,1727422240873,-500.0,0.00019178,2]
[339266537,1727422240883,-500.0,0.00019178,2]
[339266540,1727422240893,-500.0,0.00019178,2]
[339266542,1727422240903,-507.66008765,0.00019178,2]
[339266544,1727422240912,-500.0,0.00019178,2]
[339266546,1727422240923,-605.97557299,0.00019178,2]
[339266548,1727422240934,-500.0,0.00019178,2]
[339266550,1727422240944,-201.71243359,0.00019178,2]
[339266552,1727422240954,-500.0,0.00019178,2]
[339266554,1727422240964,-500.0,0.00019178,2]
[339266556,1727422240973,-500.0,0.00019178,2]
[339266558,1727422240983,-500.0,0.00019178,2]
[339266560,1727422240993,-505.69260725,0.00019178,2]
[339266562,1727422241003,-500.0,0.00019178,2]
[339266564,1727422241013,-502.31690782,0.00019178,2]
[339266566,1727422241022,-507.17430862,0.00019178,2]
[339266568,1727422241034,-507.72145634,0.00019178,2]
[339266571,1727422241046,-500.0,0.00019178,2]
[339266573,1727422241057,-500.0,0.00019178,2]
[339266575,1727422241066,-506.23067711,0.00019178,2]
[339266577,1727422241076,-500.0,0.00019178,2]
[339266579,1727422241086,-500.0,0.00019178,2]
[339266581,1727422241096,-501.94748668,0.00019178,2]
[339266583,1727422241106,-500.0,0.00019178,2]
[339266585,1727422241116,-259.03490477,0.00019178,2]
[339266587,1727422241126,-500.0,0.00019178,2]
[339266589,1727422241136,-500.0,0.00019178,2]
[339266591,1727422241145,-500.0,0.00019178,2]
[339266593,1727422241160,-500.0,0.00019178,2]
[339266595,1727422241169,-500.0,0.00019178,2]
[339266597,1727422241179,-500.0,0.00019178,2]
[339266599,1727422241189,-502.91876284,0.00019178,2]
[339266601,1727422241198,-500.0,0.00019178,2]
[339266604,1727422241209,-500.0,0.00019178,2]
[339266606,1727422241220,-641.03463898,0.00019178,2]
[339266608,1727422241230,-500.0,0.00019178,2]
[339266610,1727422241240,-500.0,0.00019178,2]
[339266612,1727422241249,-500.0,0.00019178,2]
[339266614,1727422241260,-500.0,0.00019178,2]
[339266616,1727422241270,-507.54444342,0.00019178,2]
[339266618,1727422241279,-500.0,0.00019178,2]
[339266620,1727422241289,-500.0,0.00019178,2]
[339266622,1727422241299,-500.0,0.00019178,2]
[339266624,1727422241309,-500.0,0.00019178,2]
[339266626,1727422241319,-500.0,0.00019178,2]
[339266628,1727422241328,-500.0,0.00019178,2]
[339266630,1727422241339,-500.0,0.00019178,2]
[339266632,1727422241350,-532.7567702,0.00019178,2]
[339266634,1727422241360,-500.0,0.00019178,2]
[339266636,1727422241370,-500.0,0.00019178,2]
[339266638,1727422241379,-500.0,0.00019178,2]
[339266640,1727422241389,-500.0,0.00019178,2]
[339266642,1727422241398,-500.0,0.00019178,2]
[339266644,1727422241408,-500.0,0.00019178,2]
[339266646,1727422241418,-500.0,0.00019178,2]
[339266649,1727422241428,-503.00704642,0.00019178,2]
[339266651,1727422241438,-500.0,0.00019178,2]
[339266653,1727422241448,-500.0,0.00019178,2]
[339266655,1727422241458,-500.0,0.00019178,2]
[339266657,1727422241468,-548.75,0.00019178,2]
[339266659,1727422241477,-500.0,0.00019178,2]
[339266661,1727422241486,-500.0,0.00019178,2]
[339266663,1727422241495,-502.35137241,0.00019178,2]
[339266665,1727422241505,-500.0,0.00019178,2]
[339266666,1727422241514,-5000.0,0.00019178,2]
[339266669,1727422241524,-500.0,0.00019178,2]
[339266671,1727422241534,-500.0,0.00019178,2]
[339266673,1727422241545,-500.0,0.00019178,2]
[339266675,1727422241557,-684.5,0.00019178,2]
[339266677,1727422241567,-500.0,0.00019178,2]
[339266679,1727422241577,-500.0,0.00019178,2]
[339266681,1727422241586,-500.0,0.00019178,2]
[339266683,1727422241595,-500.0,0.00019178,2]
[339266685,1727422241606,-507.57481586,0.00019178,2]
[339266687,1727422241615,-500.0,0.00019178,2]
[339266689,1727422241625,-500.0,0.00019178,2]
[339266691,1727422241634,-500.0,0.00019178,2]
[339266693,1727422241643,-600.38907819,0.00019178,2]
[339266695,1727422241653,-500.0,0.00019178,2]
[339266697,1727422241663,-500.0,0.00019178,2]
[339266699,1727422241673,-500.0,0.00019178,2]
[339266701,1727422241682,-225.66907128,0.00019178,2]
[339266703,1727422241692,-537.57514377,0.00019178,2]
[339266705,1727422241702,-500.0,0.00019178,2]
[339266707,1727422241712,-500.0,0.00019178,2]
[339266709,1727422241721,-256.72957192,0.00019178,2]
[339266711,1727422241731,-504.15036054,0.00019178,2]
[339266713,1727422241742,-500.0,0.00019178,2]
[339266716,1727422241755,-500.0,0.00019178,2]
[339266718,1727422241764,-500.0,0.00019178,2]
[339266720,1727422241773,-500.0,0.00019178,2]
[339266722,1727422241783,-500.0,0.00019178,2]
[339266724,1727422241794,-506.43246892,0.00019178,2]
[339266726,1727422241803,-18259.42,0.00019178,2]
[339266728,1727422241813,-289.05216459,0.00019178,2]
[339266730,1727422241823,-505.93642412,0.00019178,2]
[339266732,1727422241833,-512.31092145,0.00019178,2]
[339266734,1727422241845,-506.17528528,0.00019178,2]
[339266736,1727422241855,-500.0,0.00019178,2]
[339266738,1727422241865,-500.0,0.00019178,2]
[339266740,1727422241875,-571.18858076,0.00019178,2]
[339266742,1727422241884,-500.0,0.00019178,2]
[339266744,1727422241894,-500.0,0.00019178,2]
[339266746,1727422241903,-1000.0,0.00019178,2]
[339266748,1727422241913,-506.00711978,0.00019178,2]
[339266750,1727422241922,-200.0,0.00019178,2]
[339266752,1727422241932,-500.0,0.00019178,2]
[339266754,1727422241941,-503.70128654,0.00019178,2]
[339266756,1727422241951,-543.31043458,0.00019178,2]
[339266758,1727422241960,-506.78801205,0.00019178,2]
[339266760,1727422241969,-3345.55,0.00019178,2]
[339266762,1727422241979,-500.0,0.00019178,2]
[339266764,1727422241989,-496.31801106,0.00019178,2]
[339266766,1727422241998,-500.0,0.00019178,2]
[339266768,1727422242007,-512.23399119,0.00019178,2]
[339266769,1727422242016,-506.94099607,0.00019178,2]
[339266771,1727422242026,-500.0,0.00019178,2]
[339266774,1727422242036,-500.0,0.00019178,2]
[339266776,1727422242047,-151.274858,0.00019178,2]
[339266778,1727422242058,-500.0,0.00019178,2]
[339266780,1727422242067,-513.06137565,0.00019178,2]
[339266782,1727422242077,-502.58660432,0.00019178,2]
[339266784,1727422242086,-164.992837,0.00019178,2]
[339266786,1727422242097,-445.4218728,0.00019178,4]
[339266787,1727422242107,-2287.7169009,0.00019178,2]
[339266789,1727422242116,-203.938384,0.00019178,2]
[339266792,1727422242127,-46827.2859405,0.00019291,3]
[339266794,1727422242136,-526.0,0.00019294,2]
[339266796,1727422242146,-526.0,0.00019294,2]
[339266797,1727422242159,-526.0,0.00019294,2]
[339266799,1727422242168,-526.0,0.00019294,2]
[339266801,1727422242178,-526.0,0.00019294,2]
[339266803,1727422242188,-526.0,0.00019294,2]
[339266805,1727422242197,-526.0,0.00019294,2]
[339266808,1727422242207,-526.0,0.00019294,2]
[339266809,1727422242217,-526.0,0.00019294,2]
[339266811,1727422242226,-526.0,0.00019294,2]
[339266813,1727422242235,-526.0,0.00019294,2]
[339266815,1727422242245,-526.0,0.00019294,2]
[339266817,1727422242254,-526.0,0.00019294,2]
[339266819,1727422242264,-526.0,0.00019294,2]
[339266821,1727422242273,-153.0,0.00019294,2]
[339266823,1727422242284,-153.0,0.00019294,2]
[339266825,1727422242293,-153.0,0.00019294,2]
[339266827,1727422242303,-153.0,0.00019294,2]
[339266829,1727422242313,-526.0,0.00019296,2]
[339266831,1727422242322,-526.0,0.00019296,2]
[339266833,1727422242332,-526.0,0.00019296,2]
[339266835,1727422242342,-526.0,0.00019296,2]
[339266838,1727422242352,-526.0,0.00019296,2]
[339266840,1727422242361,-526.0,0.00019296,2]
[339266841,1727422242371,-526.0,0.00019296,2]
[339266843,1727422242380,-526.0,0.00019296,2]
[339266845,1727422242389,-526.0,0.00019296,2]
[339266847,1727422242399,-526.0,0.00019296,2]
[339266849,1727422242408,-526.0,0.00019296,2]
[339266851,1727422242417,-526.0,0.00019296,2]
[339266853,1727422242427,-526.0,0.00019296,2]
[339266855,1727422242437,-526.0,0.00019296,2]
[339266857,1727422242446,-153.0,0.00019296,2]
[339266860,1727422242456,-153.0,0.00019296,2]
[339266861,1727422242466,-153.0,0.00019296,2]
[339266864,1727422242476,-153.0,0.00019296,2]
[339266866,1727422242485,-526.0,0.00019299,2]
[339266868,1727422242495,-526.0,0.00019299,2]
[339266870,1727422242504,-526.0,0.00019299,2]
[339266873,1727422242514,-526.0,0.00019299,2]
[339266874,1727422242523,-526.0,0.00019299,2]
[339266876,1727422242533,-526.0,0.00019299,2]
[339266879,1727422242544,-526.0,0.00019299,2]
[339266881,1727422242553,-526.0,0.00019299,2]
[339266883,1727422242562,-526.0,0.00019299,2]
[339266885,1727422242572,-526.0,0.00019299,2]
[339266887,1727422242581,-526.0,0.00019299,2]
[339266888,1727422242591,-526.0,0.00019299,2]
[339266890,1727422242601,-526.0,0.00019299,2]
[339266892,1727422242611,-526.0,0.00019299,2]
[339266894,1727422242620,-153.0,0.00019299,2]
[339266896,1727422242630,-153.0,0.00019299,2]
[339266898,1727422242639,-153.0,0.00019299,2]
[339266900,1727422242648,-153.0,0.00019299,2]
[339266902,1727422242658,-150.112233,0.000193,2]
[339266904,1727422242669,-526.0,0.00019301,2]
[339266907,1727422242680,-526.0,0.00019301,2]
[339266909,1727422242690,-526.0,0.00019301,2]
[339266911,1727422242700,-526.0,0.00019301,2]
[339266913,1727422242710,-526.0,0.00019301,2]
[339266915,1727422242720,-526.0,0.00019301,2]
[339266917,1727422242730,-526.0,0.00019301,2]
[339266919,1727422242739,-526.0,0.00019301,2]
[339266921,1727422242749,-526.0,0.00019301,2]
[339266923,1727422242758,-526.0,0.00019301,2]
[339266925,1727422242769,-526.0,0.00019301,2]
[339266927,1727422242778,-526.0,0.00019301,2]
[339266929,1727422242787,-526.0,0.00019301,2]
[339266931,1727422242797,-526.0,0.00019301,2]
[339266934,1727422242806,-153.0,0.00019301,2]
[339266937,1727422242815,-153.0,0.00019301,2]
[339266939,1727422242825,-153.0,0.00019301,2]
[339266941,1727422242836,-153.0,0.00019301,2]
[339266943,1727422242845,-182.313,0.00019318,2]
[339266944,1727422242855,-150.112248,0.000194,2]
[339266946,1727422242865,-151.0,0.00019442,2]
[339266948,1727422242875,-151.0,0.00019442,2]
[339266950,1727422242885,-151.0,0.00019442,2]
[339266952,1727422242895,-151.0,0.00019442,2]
[339266954,1727422242905,-284.435159,0.00019442,2]
[339266956,1727422242915,-151.0,0.00019442,2]
[339266958,1727422242926,-151.0,0.00019442,2]
[339266961,1727422242936,-160.254891,0.00019442,2]
[339266963,1727422242946,-160.254891,0.00019442,2]
[339266965,1727422242957,-160.0,0.00019451,2]
[339266967,1727422242966,-500.0,0.00019452,2]
[339266969,1727422242976,-506.95147039,0.00019452,2]
[339266971,1727422242985,-2138.35,0.00019452,2]
[339266973,1727422242995,-200.0,0.00019452,2]
[339266975,1727422243005,-500.0,0.00019452,2]
[339266977,1727422243014,-386.29035934,0.00019452,2]
[339266979,1727422243024,-500.0,0.00019452,2]
[339266981,1727422243034,-151.0,0.00019452,2]
[339266983,1727422243044,-500.0,0.00019452,2]
[339266985,1727422243054,-151.0,0.00019452,2]
[339266987,1727422243063,-614.41819999,0.00019452,2]
[339266988,1727422243073,-1508.71,0.00019452,2]
[339266990,1727422243082,-500.0,0.00019452,2]
[339266992,1727422243092,-500.0,0.00019452,2]
[339266994,1727422243102,-151.0,0.00019452,2]
[339266996,1727422243112,-630.12290026,0.00019452,2]